Cogmind - Beta 15 @@@ ROGUE MODE // 2025.10.01 @ 16:44:27 Player: fantomas Result: Self-destructed Performance ------------- Evolutions (1) 500 Regions Visited (2) 400 Robots Destroyed (8) 40 Value Destroyed (161) 161 Prototype IDs (0) 0 Alien Tech Used (0) 0 Bonus (0) 0 TOTAL SCORE: 1101 Bonus ------- None Cogmind --------- Core Integrity 386/400 Matter 274/300 Energy 96/100 System Corruption 0% Temperature Cool (0) Movement Walking (120) Location -9/Materials Parts ------- > --- POWER (1) -------- (None) > --- PROPULSION (2) --- Aluminum Leg Aluminum Leg > --- UTILITY (4) ------ Small Storage Unit Sensor Array Propulsion Shielding > --- WEAPON (2) ------- Assault Rifle Light Assault Rifle > --- INVENTORY (8) ---- Improved Treads Improved Treads Improved Medium Laser Improved Medium Laser Datajack Peak State ------------ > --- POWER ------------ (None) > --- PROPULSION ------- Aluminum Leg Aluminum Leg > --- UTILITY ---------- Small Storage Unit Sensor Array Propulsion Shielding > --- WEAPON ----------- Assault Rifle Light Assault Rifle > --- INVENTORY -------- Improved Treads Improved Treads Improved Medium Laser Improved Medium Laser Datajack [Rating: 8] Favorites ----------- Power Light Ion Engine Engine Light Ion Engine Propulsion Aluminum Leg Leg Aluminum Leg Wheel Wheel Utility Small Matter Pod Device Sensor Array Storage Small Matter Pod Protection Propulsion Shielding Weapon Assault Rifle Energy Gun Small Laser Ballistic Gun Assault Rifle Launcher Grenade Launcher Build | -11 -10 -9 ------- Run | Yrd Mat Mat Slots Evolved 2 | . . 2 Power . | . . . Propulsion . | . . . Utility 2 | . . 2 Weapon . | . . . Parts Attached 14 | 7 6 1 Power 1 | 1 . . Engine 1 | 1 . . Core . | . . . Reactor . | . . . Propulsion 5 | 3 2 . Treads . | . . . Leg 3 | 1 2 . Wheel 2 | 2 . . Hover . | . . . Flight . | . . . Utility 4 | 1 2 1 Device 1 | . 1 . Storage 2 | 1 . 1 Processor . | . . . Hackware . | . . . Protection 1 | . 1 . Artifact . | . . . Weapon 4 | 2 2 . Energy Gun 1 | 1 . . Energy Cannon . | . . . Ballistic Gun 2 | 1 1 . Ballistic Cannon . | . . . Launcher 1 | . 1 . Special Weapon . | . . . Impact Weapon . | . . . Slashing Weapon . | . . . Piercing Weapon . | . . . Special Melee Weapon . | . . . Unidentified Prototypes . | . . . Parts Lost 3 | . 3 . Power . | . . . Propulsion 2 | . 2 . Utility . | . . . Weapon 1 | . 1 . Highest Loss Streak 3 | . 3 . To Critical Strikes . | . . . Average Backups 2 | 2 2 1 Power . | . . . Propulsion . | 1 . . Utility . | . . . Weapon . | 1 . . Tool/Special . | . . . Unused Backups 6 | . 1 5 Power . | . . . Propulsion 3 | . 1 2 Utility . | . . . Weapon 2 | . . 2 Tool/Special 1 | . . 1 Average Slot Usage (%) 82 | . 87 67 Engine 9 | . 13 . Leg 20 | . 19 22 Wheel 5 | . 6 . Device 6 | . 5 11 Storage 7 | . 8 1 Protection 6 | . 5 11 Ballistic Gun 23 | . 23 22 Launcher 2 | . 2 . Peak Build Rating 8 | 6 7 8 Average Rating 5 | 3 6 6 On Entrance 4 | . 6 6 Naked Turns . | . . . Heaviest Build 10 | 7 9 10 Greatest Support 20 | 20 20 20 Greatest Overweight (x) 1 | . 1 . Average Overweight (x) . | . . . Largest Inventory Capacity 8 | 5 5 8 Average Capacity 5 | 5 5 5 Most Carried 5 | 5 5 5 Average Carried 2 | 3 2 2 Final Capacity 8 | 5 5 8 Final Carried 5 | 4 1 5 Class Distribution -------------------- 100% | Mutant Dominant Class ---------------- Mutant | -10/Materials Mutant | -9/Materials Resources | -11 -10 -9 ----------- Run | Yrd Mat Mat Matter Collected 357 | 324 33 . Remotely . | . . . Salvage Created 225 | 51 118 56 Parts 15 | 4 7 4 Haulers Intercepted . | . . . Recyclers Shooed . | . . . Parts Field Recycled . | . . . Retrieved Matter . | . . . Parts Self-Destructed . | . . . Prevented . | . . . Kills | -11 -10 -9 ------- Run | Yrd Mat Mat Combat Hostiles Destroyed 5 | 1 3 1 Guns 2 | 1 . 1 AOE 3 | . 3 . Classes Destroyed 6 | 2 3 1 Worker 1 | 1 . . Builder 1 | . 1 . Recycler 1 | . 1 . Swarmer 3 | . 3 . Grunt 1 | 1 . . Sentry 1 | . . 1 Best Kill Streak 3 | 1 3 1 Combat Bots Only 3 | 1 3 1 Max Kills in Single Turn 3 | 1 3 1 Gunslinging . | . . . Exploded 3 | . 3 . Melee . | . . . Uniques/NPCs Destroyed . | . . . Combat | -11 -10 -9 -------- Run | Yrd Mat Mat Hostile Shots Fired 23 | 8 5 10 Missed 9 | 1 3 5 Hits 14 | 7 2 5 Projectile 14 | 7 2 5 Damage Taken 324 | 74 172 78 Core 67 | 42 11 14 Absorbed by Shields . | . . . Redirected to Shielding 10 | . . 10 Regen/Repaired (Parts) 24 | . 24 . Core Remaining (%) 80 | 83 78 . Volleys Fired 15 | 8 3 4 Largest 2 | 1 2 2 Hottest 50 | 20 50 40 Shots Fired 22 | 8 6 8 Gun 20 | 8 4 8 Cannon . | . . . Launcher 2 | . 2 . Special . | . . . Kinetic 20 | 8 4 8 Thermal . | . . . Explosive 2 | . 2 . Electromagnetic . | . . . Robot Hit Streak 5 | 5 3 4 Robot Miss Streak 5 | 1 2 5 Penetration Max . | . . . Secondary Targets . | . . . Shots Hit Robots 13 | 7 2 4 Core Hits 11 | 3 6 2 Critical Kills . | . . . Critical Parts Destroyed . | . . . Critical Strikes . | . . . Melee Attacks . | . . . Impact . | . . . Slashing . | . . . Piercing . | . . . Sneak Attacks . | . . . Combat Hostiles . | . . . Follow-up Attacks . | . . . Damage Inflicted 367 | 89 238 40 Guns 144 | 89 15 40 Cannons . | . . . Explosions 206 | . 206 . Melee . | . . . Ramming 17 | . 17 . Kinetic 144 | 89 15 40 Thermal . | . . . Explosive 135 | . 135 . Electromagnetic 71 | . 71 . Impact . | . . . Slashing . | . . . Piercing . | . . . Highest Corruption . | . . . Average Corruption . | . . . Corruption Purged . | . . . Corruption Blocked . | . . . Overload Shots . | . . . Overflow Damage 71 | . 71 . Projectiles . | . . . Explosions 71 | . 71 . Melee . | . . . Knockbacks . | . . . Impact . | . . . Kinetic . | . . . Secondary . | . . . Self-Inflicted Damage 158 | . 158 . Shots 3 | . 3 . Rammed 1 | . 1 . Targets Rammed 3 | . 3 . Kicked 2 | . 2 . Crushed . | . . . Highest Temperature . | . . . Average Temperature . | . . . Received Heat Transfer 51 | 42 . 9 Siege Activations . | . . . Martial Activations . | . . . Shielding Activations . | . . . Robots Disrupted . | . . . Combat Hostiles . | . . . Robots Corrupted . | . . . Combat Hostiles . | . . . Parts Fried 3 | . 3 . Impact Corruptions . | . . . Robots Melted . | . . . Combat Hostiles . | . . . Parts Melted . | . . . Heat Transferred . | . . . Parts Sabotaged . | . . . Parts Stolen . | . . . Parts Stripped . | . . . Power Chain Reactions . | . . . Alert | -11 -10 -9 ------- Run | Yrd Mat Mat Maximum Alert Level . | . . . Low Security (%) 100 | 100 100 100 Level 1 . | . . . Level 2 . | . . . Level 3 . | . . . Level 4 . | . . . Level 5 . | . . . High Security . | . . . Max Security . | . . . Peak Influence 120 | 20 120 30 Initial 13 | . 13 . Average 17 | 2 26 6 Influence Increases 215 | 25 160 30 Destroy 0b10 Robot/C 100 | 20 60 20 Destroy 0b10 Robot/NC 15 | 5 10 . Destroy Leader 20 | . 10 10 Successful Hack 3 | . 3 . Disable Machine 60 | . 60 . Destroy Structure 17 | . 17 . Influence Decreases 205 | 5 180 20 Entered New Map 7 | . 7 . Time Decay 131 | 5 106 20 Lost Part 30 | . 30 . Purge Threat 37 | . 37 . Squads Dispatched 1 | . . 1 Investigation . | . . . Extermination . | . . . Reinforcement 1 | . . 1 Assault . | . . . Garrison . | . . . Intercept . | . . . Searches Triggered . | . . . Construction Impeded . | . . . Haulers Reinforced . | . . . Active Scanning Responses . | . . . Cargo Convoy Interrupts . | . . . Stealth | -11 -10 -9 --------- Run | Yrd Mat Mat Distress Signals . | . . . Communications Jammed . | . . . Distress Signals . | . . . Times Spotted 7 | 1 5 1 Peak Tracking Total 3 | 1 3 2 Tactical Retreats . | . . . Traps | -11 -10 -9 ------- Run | Yrd Mat Mat Traps Triggered . | . . . Indirectly . | . . . Trap Hack Attempts . | . . . Triggered . | . . . Disarmed . | . . . Reprogrammed . | . . . Reused . | . . . Traps Extracted . | . . . Installed . | . . . Triggered . | . . . Machines | -11 -10 -9 ---------- Run | Yrd Mat Mat Machines Disabled 4 | . 4 . Max in Single Turn 2 | . 2 . Machines Repaired . | . . . Machines Dismantled . | . . . Machines Sabotaged . | . . . Overloaded Fab Kills . | . . . Hacking | -11 -10 -9 --------- Run | Yrd Mat Mat Machines Accessed 4 | . 4 . Terminals 2 | . 2 . Fabricators . | . . . Repair Stations 1 | . 1 . Recycling Units 1 | . 1 . Scanalyzers . | . . . Garrison Access . | . . . Total Hacks 17 | . 17 . Successful 13 | . 13 . Failed 4 | . 4 . Catastrophic . | . . . Database Lockouts . | . . . Manual 1 | . 1 . Terminals 8 | . 8 . Fabricators . | . . . Repair Stations 3 | . 3 . Recycling Units 6 | . 6 . Scanalyzers . | . . . Garrison Access . | . . . Terminal Hacks 6 | . 6 . Record 3 | . 3 . Alert Level 1 | . 1 . Unreport Threat 1 | . 1 . Locate Traps 1 | . 1 . Fabricator Hacks . | . . . Repair Station Hacks 2 | . 2 . Scan Component 1 | . 1 . Repair 1 | . 1 . Recycling Unit Hacks 5 | . 5 . Recycle Component 3 | . 3 . Process 1 | . 1 . Retrieve Matter 1 | . 1 . Scanalyzer . | . . . Garrison Access Hacks . | . . . Unauthorized Hacks . | . . . Terminals . | . . . Fabricators . | . . . Repair Stations . | . . . Recycling Units . | . . . Scanalyzers . | . . . Garrison Access . | . . . Data Cores Recovered . | . . . Used . | . . . Hacking Detections 1 | . 1 . Full Trace Events . | . . . Feedback Events . | . . . Feedback Blocked . | . . . Robot Schematics Acquired . | . . . Robots Built . | . . . Authchips . | . . . Time . | . . . Total Robot Build Rating . | . . . Part Schematics Acquired . | . . . Parts Built . | . . . Authchips . | . . . Time . | . . . Total Part Build Rating . | . . . Parts Repaired 1 | . 1 . Time 26 | . 26 . Parts Recycled 3 | . 3 . Recycled Matter 96 | . 96 . Retrieved Matter 96 | . 96 . Retrieved Components . | . . . Parts Scanalyzed . | . . . Part Schematics Acquired . | . . . Parts Damaged . | . . . Bothacking | -11 -10 -9 ------------ Run | Yrd Mat Mat Used RIF Installer . | . . . Robots Hacked . | . . . Non-combat . | . . . Combat . | . . . Robot Hacks Applied . | . . . Relay Couplers Released . | . . . Fabnet Peak Effective % . | . . . Robots Rewired . | . . . Allies Hacked . | . . . Hacks Repelled . | . . . Allies | -11 -10 -9 -------- Run | Yrd Mat Mat Total Allies . | . . . Largest Group . | . . . Highest-Rated Group . | . . . Highest-Rated Ally . | . . . Total Orders . | . . . Ally Attacks . | . . . Total Damage . | . . . Kills . | . . . Allies Corrupted . | . . . Allies Melted . | . . . Intel | -11 -10 -9 ------- Run | Yrd Mat Mat Active Infowar (turns) 342 | . 198 144 Sensors 342 | . 198 144 Robot Analysis Total . | . . . Derelict Logs Recovered . | . . . Drone Launches . | . . . Drone Recoveries . | . . . Exploration | -11 -10 -9 ------------- Run | Yrd Mat Mat Turns Passed 801 | 158 499 144 Spaces Moved 676 | 133 438 105 Core 51 | 31 20 . Treads . | . . . Legs 394 | . 289 105 Wheels 231 | 102 129 . Hover . | . . . Flight . | . . . Fastest Speed 50 | 50 80 120 Average Speed 102 | 73 107 120 Slowest Speed 120 | 80 120 120 Overloaded Moves . | . . . Propulsion Burnouts . | . . . Robots Hopped . | . . . Potential Cave-ins . | . . . Cave-ins Triggered . | . . . Exploration Rate (%) 20 | 9 43 10 Regions Visited 2 Branch Regions . Pre-discovered Areas . | . . . Known Exits Taken . | . . . Unknown Exits Taken 2 | 1 1 . Scrap Searched . | . . . Spaces Dug . | . . . Terrain Destroyed 18 | . 18 . Melee . | . . . Projectile . | . . . AOE 18 | . 18 . Terrain Rammed . | . . . Walls Destroyed . | . . . Machines Disabled . | . . . Actions | -11 -10 -9 --------- Run | Yrd Mat Mat Total 758 | 182 461 115 Wait 26 | 25 . 1 Move 674 | 132 437 105 Hop . | . . . Pick Up 18 | 7 7 4 Fast Attach 6 | 3 2 1 Attach 5 | 3 2 . Detach . | . . . Swap 6 | 4 2 . Drop 5 | . 5 . Fire 15 | 8 3 4 Melee . | . . . Ram 1 | . 1 . Kick 2 | . 2 . Crush . | . . . Escape Stasis . | . . . Rewire . | . . . Trap . | . . . Miscellaneous . | . . . Route ------- -11/Scrapyard -10/Materials -9/Materials History --------- Turn | Location | Event 2 | -11/Scrapyard | Met Revision 17 129 | -11/Scrapyard | Discovered new exit (range 8) 159 | -11/Scrapyard | Entered Materials 308 | -10/Materials | Lost 3 parts (2n1w) 329 | -10/Materials | Build established: Mutant 510 | -10/Materials | Discovered new exit (range 15) 647 | -10/Materials | Repaired Lgt. Ion Engine? 658 | -10/Materials | Entered another Materials area 658 | -9/Materials | Evolved 2 slots: Utility x2 802 | -9/Materials | Self-destructed Last Messages --------------- bottom-right corner. LOCATION=UNKNOWN GOAL=ESCAPE K-01 Serf collects debris. Acquired Imp. Treads. [Achievement: Storm Trooper] ALERT: Hostiles spotted, dispatching reinforcements to Terminal M001. [Achievement: Uninvited Guest] Y-45 Defender destroyed. Acquired Imp. Treads. K-01 Serf cleans the Material Processor. Acquired Prototype Energy Gun. Acquired Sml. Storage Unit. The Sml. Storage Unit has expanded your inventory capacity. Items held in inventory do not count towards total mass and therefore cannot slow you down. R-06 Scavenger collects Heat Sink. R-06 Scavenger collects Lgt. Treads. Map ----- +----------------------------------------------------+ | | | | | | | | | | | | | | | | | | | | | | | | | | | | | | | #????????????????????????????????????????????????? | | #????????????????????????????????????????????????? | | #????????????????????????????????????????????????? | | #????????????????????????????????????????????????? | | #????????????????????????????????????????????????? | | #???????????????????######???????????????????????? | | ###############????##!!!!##??????????????????????? | | #????#! #??????????????????????? | | #????# #??????????????????????? | | ###### ###### ??????? | | ###+###### @ r! ??????? | | ## = a##### ??????? | | """"" ## #?????????????????????? | | """"" ## #?????????????????????? | | """"" ## ^ ^ #?????????????????????? | | """"" !## #?????????????????????? | | """"" ## ^""" """ #?????????????????????? | | """"" [## """"""""" ????????????????????? | | """"" ## """"" ??????????????????? | | ## ?????????????????? | | ##" "##### ????????????????? | | ?#"R"#???# ###+### ????????????????? | | ?#"""#???#######?????###k###### ????????????????? | | ?#####?????????????????? ???????????????????????? | | ????????????????????????"????????????????????????? | | ?????????????????????????????????????????????????? | | ?????????????????????????????????????????????????? | | ?????????????????????????????????????????????????? | | ?????????????????????????????????????????????????? | | ?????????????????????????????????????????????????? | | ?????????????????????????????????????????????????? | | ?????????????????????????????????????????????????? | | ?????????????????????????????????????????????????? | | ?????????????????????????????????????????????????? | | ?????????????????????????????????????????????????? | +----------------------------------------------------+ Best States ------------- Heat Dissipation 28 Energy Generation 10 Energy Capacity 125 Matter Stores 350 Matter Capacity 350 Sight Range 16 Robot Scan Range 14 Terrain Scan Density 10 Propulsion Shielding 33 Evasion (%) 55 Item Schematics ----------------- None Robot Schematics ------------------ None Fabricated ------------ Nothing Repaired ---------- Lgt. Ion Engine | 40% | -10/Materials Alien Tech Used ----------------- None Achievements -------------- Everything Is Under Control Part-time Mechanic Storm Trooper Uninvited Guest Challenges ------------ None Game ------ Seed PoweredMicrowarpBrace Manual? 0 Play Time 00:39:17 Cumulative 0.6 hours Start 2025.10.01 @ 15:18:03 End 2025.10.01 @ 16:44:27 Sessions 1 Manual Loads 0 Difficulty Rogue Special Mode None Game No. 1 Rogue 1 Adventurer 0 Explorer 0 Win Type - Total 0 Types 0/0/0/0/0/0/0/0/0/0 Lore% 0 Gallery% 0 Achievement% 1 Wizard Run 0 Options --------- Layout 1 ASCII 0 Keyboard 0 Movement Arrows Keybinds 0 Fullscreen 1 Font 24/Smallcaps Map View 50x35 Zoom Use 63% Tactical HUD 0 Map Filters NONE Filters NONE Steam 1 RUN: 133d3b79-14a6-420a-b2e4-5957108fc83f